Cogmind - Beta 14 @@@ ROGUE MODE // 2024.11.02 @ 14:14:01 Player: Gabe+Kate4EVR Result: Destroyed by as-80576 with Assembled Heavy Rifle Performance ------------- Evolutions (0) 0 Regions Visited (3) 600 Robots Destroyed (14) 70 Value Destroyed (237) 237 Prototype IDs (24) 480 Alien Tech Used (0) 0 Bonus (300) 300 TOTAL SCORE: 1687 Bonus ------- Aligned with FarCom 300 Cogmind --------- Core Integrity 0/250 Matter 225/300 Energy 76/100 System Corruption 10% Temperature Cool (81) Movement Walking (190) Ox1 Location -10/Exiles Parts ------- > --- POWER (1) -------- (None) > --- PROPULSION (2) --- Aluminum Leg Aluminum Leg > --- UTILITY (2) ------ Large Storage Unit > --- WEAPON (2) ------- Guided Plasma Cannon > --- INVENTORY (15) --- Light Ion Engine Machine Analyzer Hacking Suite Medium Laser Particle Gun Light Assault Rifle Grenade Launcher Datajack Mining Laser Peak State ------------ > --- POWER ------------ Light Nuclear Core > --- PROPULSION ------- Makeshift Leg Wheel > --- UTILITY ---------- Large Storage Unit > --- WEAPON ----------- Particle Gun Guided Plasma Cannon > --- INVENTORY -------- Light Ion Engine Aluminum Leg Aluminum Leg Machine Analyzer Hacking Suite Medium Laser Light Assault Rifle Grenade Launcher Rocket Launcher Datajack Mining Laser [Rating: 20] Favorites ----------- Power Light Nuclear Core Engine Ion Engine Power Core Light Nuclear Core Propulsion Wheel Leg Aluminum Leg Wheel Wheel Utility Large Storage Unit Device Improved Terrain Scanner Storage Large Storage Unit Weapon Light Assault Rifle Energy Gun Particle Gun Energy Cannon Guided Plasma Cannon Ballistic Gun Light Assault Rifle Launcher Grenade Launcher Build | -11 -10 -10 -10 ------- Run | Yrd Mat Min Exi Slots Evolved . | . . . . Power . | . . . . Propulsion . | . . . . Utility . | . . . . Weapon . | . . . . Parts Attached 26 | 7 4 9 6 Power 3 | 1 . 2 . Engine 2 | 1 . 1 . Core 1 | . . 1 . Reactor . | . . . . Propulsion 8 | 2 1 2 3 Treads . | . . . . Leg 6 | 2 1 . 3 Wheel 2 | . . 2 . Hover . | . . . . Flight . | . . . . Utility 4 | 2 . 2 . Device 2 | 1 . 1 . Storage 2 | 1 . 1 . Processor . | . . . . Hackware . | . . . . Protection . | . . . . Artifact . | . . . . Weapon 11 | 2 3 3 3 Energy Gun 3 | . 1 2 . Energy Cannon 2 | . . . 2 Ballistic Gun 3 | 2 1 . . Ballistic Cannon . | . . . . Launcher 3 | . 1 1 1 Special Weapon . | . . . . Impact Weapon . | . . . . Slashing Weapon . | . . . . Piercing Weapon . | . . . . Special Melee Weapon . | . . . . Unidentified Prototypes 1 | . . 1 . Parts Lost 6 | . . 2 4 Power 2 | . . 1 1 Propulsion 2 | . . . 2 Utility 1 | . . 1 . Weapon 1 | . . . 1 Highest Loss Streak 4 | . . 2 4 To Critical Strikes . | . . . . Average Slot Usage (%) 88 | . 100 87 83 Engine 6 | . 14 6 . Core 7 | . . 7 13 Leg 7 | . 28 4 . Wheel 19 | . . 23 26 Device 4 | . 14 2 . Storage 14 | . 14 14 14 Energy Gun 10 | . 9 9 13 Ballistic Gun 14 | . 18 14 13 Launcher 2 | . . 4 . Peak Build Rating 20 | 9 10 16 20 Average Rating 9 | 6 9 10 11 On Entrance 7 | . 9 10 11 Naked Turns . | . . . . Heaviest Build 30 | 13 14 29 30 Greatest Support 20 | 20 20 20 20 Greatest Overweight (x) 1 | . . 1 1 Average Overweight (x) . | . . . 1 Largest Inventory Capacity 15 | 8 8 15 15 Average Capacity 12 | 7 8 13 15 Most Carried 13 | 8 8 11 13 Average Carried 8 | 3 7 9 10 Final Capacity 15 | 8 8 15 15 Final Carried 11 | 8 8 11 9 Class Distribution -------------------- 50% | Mutant 49% | Scavenger-Mutant Dominant Class ---------------- Mutant | -10/Materials Scavenger-Mutant | -10/Mines Scavenger-Mutant | -10/Exiles Resources | -11 -10 -10 -10 ----------- Run | Yrd Mat Min Exi Matter Collected 477 | 285 65 116 11 Remotely . | . . . . Salvage Created 414 | 104 144 61 105 Parts 28 | 10 7 7 4 Haulers Intercepted . | . . . . Recyclers Shooed 1 | 1 . . . Parts Field Recycled . | . . . . Retrieved Matter . | . . . . Parts Self-Destructed . | . . . . Prevented . | . . . . Kills | -11 -10 -10 -10 ------- Run | Yrd Mat Min Exi Combat Hostiles Destroyed 8 | . 2 4 2 Guns 3 | . 2 1 . Cannons 2 | . . . 2 AOE 3 | . . 3 . Classes Destroyed 8 | 2 3 1 2 Tunneler 2 | 2 . . . Recycler 1 | 1 . . . Mechanic 1 | . 1 . . Operator 1 | . 1 . . Swarmer 3 | . . 3 . Grunt 3 | . 2 1 . Zionite 3 | . . . 3 Assembled 2 | . . . 2 Best Kill Streak 5 | 2 3 3 5 Combat Bots Only 3 | . 2 3 2 Max Kills in Single Turn 2 | 1 1 2 1 Gunslinging . | . . . . Exploded 2 | . . 2 . Melee . | . . . . Uniques/NPCs Destroyed . | . . . . Combat | -11 -10 -10 -10 -------- Run | Yrd Mat Min Exi Hostile Shots Fired 61 | . 7 12 42 Missed 11 | . 1 3 7 Damage Taken 1140 | . 96 392 652 Core 266 | . 31 24 211 Absorbed by Shields . | . . . . Core Remaining (%) 100 | 100 . . . Volleys Fired 38 | 13 12 5 8 Largest 2 | 2 2 2 2 Hottest 120 | 40 70 70 120 Shots Fired 74 | 26 24 11 13 Gun 67 | 26 24 8 9 Cannon 3 | . . . 3 Launcher 4 | . . 3 1 Special . | . . . . Kinetic 50 | 26 14 6 4 Thermal 20 | . 10 2 8 Explosive 4 | . . 3 1 Electromagnetic . | . . . . Robot Hit Streak 12 | 4 12 5 5 Robot Miss Streak 3 | 3 1 1 3 Penetration Max . | . . . . Secondary Targets . | . . . . Shots Hit Robots 46 | 15 20 5 6 Core Hits 28 | 5 10 8 5 Critical Kills . | . . . . Critical Parts Destroyed . | . . . . Critical Strikes 2 | . 1 1 . Burn 2 | . 1 1 . Melee Attacks . | . . . . Impact . | . . . . Slashing . | . . . . Piercing . | . . . . Sneak Attacks . | . . . . Combat Hostiles . | . . . . Follow-up Attacks . | . . . . Damage Inflicted 681 | 123 195 226 137 Guns 381 | 123 195 27 36 Cannons 101 | . . . 101 Explosions 199 | . . 199 . Melee . | . . . . Ramming . | . . . . Kinetic 252 | 123 94 15 20 Thermal 230 | . 101 12 117 Explosive 199 | . . 199 . Electromagnetic . | . . . . Impact . | . . . . Slashing . | . . . . Piercing . | . . . . Highest Corruption 10 | . . 7 10 Average Corruption 7 | . . 7 7 Corruption Purged . | . . . . Corruption Blocked . | . . . . Effects 26 | . . 15 11 Message Errors 5 | . . 3 2 Matter Fused 4 | . . 2 2 Heat Flow Errors 4 | . . 3 1 Energy Discharges 6 | . . 3 3 Data Loss (minor) 5 | . . 3 2 Misfires 2 | . . 1 1 Overload Shots . | . . . . Overflow Damage 1 | . . 1 . Projectiles . | . . . . Explosions 1 | . . 1 . Melee . | . . . . Knockbacks . | . . . . Impact . | . . . . Kinetic . | . . . . Secondary . | . . . . Self-Inflicted Damage 64 | . . 64 . Shots 2 | . . 2 . Rammed . | . . . . Targets Rammed . | . . . . Kicked . | . . . . Crushed . | . . . . Highest Temperature 267 | . 144 121 267 Average Temperature 81 | . 54 42 121 Received Heat Transfer 110 | . 54 36 20 Siege Activations . | . . . . Robots Corrupted . | . . . . Combat Hostiles . | . . . . Parts Fried . | . . . . Impact Corruptions . | . . . . Robots Melted . | . . . . Combat Hostiles . | . . . . Parts Melted 1 | . 1 . . Heat Transferred 758 | . 370 111 277 Parts Sabotaged . | . . . . Parts Stolen . | . . . . Parts Stripped . | . . . . Power Chain Reactions . | . . . . Alert | -11 -10 -10 -10 ------- Run | Yrd Mat Min Exi Peak Influence 133 | 15 84 133 . Initial 32 | . 9 32 . Average 49 | 5 37 67 . Maximum Alert Level . | . . . . Low Security (%) 100 | 100 100 100 . Level 1 . | . . . . Level 2 . | . . . . Level 3 . | . . . . Level 4 . | . . . . Level 5 . | . . . . High Security . | . . . . Max Security . | . . . . Squads Dispatched . | . . . . Investigation . | . . . . Extermination . | . . . . Reinforcement . | . . . . Assault . | . . . . Garrison . | . . . . Intercept . | . . . . Searches Triggered . | . . . . Construction Impeded . | . . . . Haulers Reinforced . | . . . . Active Scanning Responses . | . . . . Cargo Convoy Interrupts . | . . . . Stealth | -11 -10 -10 -10 --------- Run | Yrd Mat Min Exi Distress Signals . | . . . . Communications Jammed . | . . . . Distress Signals . | . . . . Times Spotted 20 | . 4 4 12 Peak Tracking Total 13 | . 2 3 13 Tactical Retreats . | . . . . Traps | -11 -10 -10 -10 ------- Run | Yrd Mat Min Exi Traps Triggered . | . . . . Indirectly . | . . . . Trap Hack Attempts . | . . . . Triggered . | . . . . Disarmed . | . . . . Reprogrammed . | . . . . Reused . | . . . . Traps Extracted . | . . . . Installed . | . . . . Triggered . | . . . . Machines | -11 -10 -10 -10 ---------- Run | Yrd Mat Min Exi Machines Disabled 5 | . . . 5 Max in Single Turn 2 | . . . 2 Machines Repaired . | . . . . Machines Dismantled . | . . . . Machines Sabotaged . | . . . . Overloaded Fab Kills . | . . . . Hacking | -11 -10 -10 -10 --------- Run | Yrd Mat Min Exi Machines Accessed 2 | . 1 . 1 Terminals 1 | . 1 . . Fabricators . | . . . . Repair Stations . | . . . . Recycling Units . | . . . . Scanalyzers . | . . . . Garrison Access . | . . . . Total Hacks 3 | . 2 . 1 Successful 1 | . . . 1 Failed 2 | . 2 . . Catastrophic . | . . . . Database Lockouts . | . . . . Manual 3 | . 2 . 1 Terminals 2 | . 2 . . Fabricators . | . . . . Repair Stations . | . . . . Recycling Units . | . . . . Scanalyzers . | . . . . Garrison Access . | . . . . Terminal Hacks 1 | . . . 1 Derelict Proto ID Bank 1 | . . . 1 Fabricator Hacks . | . . . . Repair Station Hacks . | . . . . Recycling Unit Hacks . | . . . . Scanalyzer . | . . . . Garrison Access Hacks . | . . . . Unauthorized Hacks . | . . . . Terminals . | . . . . Fabricators . | . . . . Repair Stations . | . . . . Recycling Units . | . . . . Scanalyzers . | . . . . Garrison Access . | . . . . Data Cores Recovered 1 | . 1 . . Used . | . . . . Hacking Detections 1 | . 1 . . Full Trace Events . | . . . . Feedback Events . | . . . . Feedback Blocked . | . . . . Robot Schematics Acquired . | . . . . Robots Built . | . . . . Authchips . | . . . . Time . | . . . . Total Robot Build Rating . | . . . . Part Schematics Acquired . | . . . . Parts Built . | . . . . Authchips . | . . . . Time . | . . . . Total Part Build Rating . | . . . . Parts Repaired . | . . . . Time . | . . . . Parts Recycled . | . . . . Recycled Matter . | . . . . Retrieved Matter . | . . . . Retrieved Components . | . . . . Parts Scanalyzed . | . . . . Part Schematics Acquired . | . . . . Parts Damaged . | . . . . Bothacking | -11 -10 -10 -10 ------------ Run | Yrd Mat Min Exi Used RIF Installer . | . . . . Robots Hacked . | . . . . Non-combat . | . . . . Combat . | . . . . Robot Hacks Applied . | . . . . Relay Couplers Released . | . . . . Fabnet Peak Effective % . | . . . . Robots Rewired . | . . . . Allies Hacked . | . . . . Hacks Repelled . | . . . . Allies | -11 -10 -10 -10 -------- Run | Yrd Mat Min Exi Total Allies . | . . . . Largest Group . | . . . . Highest-Rated Group . | . . . . Highest-Rated Ally . | . . . . Total Orders . | . . . . Ally Attacks . | . . . . Total Damage . | . . . . Kills . | . . . . Allies Corrupted . | . . . . Allies Melted . | . . . . Intel | -11 -10 -10 -10 ------- Run | Yrd Mat Min Exi Robot Analysis Total . | . . . . Derelict Logs Recovered 1 | . . 1 . Drone Launches . | . . . . Drone Recoveries . | . . . . Exploration | -11 -10 -10 -10 ------------- Run | Yrd Mat Min Exi Turns Passed 1335 | 173 227 572 363 Spaces Moved 1122 | 103 144 531 344 Core 8 | 8 . . . Treads . | . . . . Legs 311 | 95 144 69 3 Wheels 803 | . . 462 341 Hover . | . . . . Flight . | . . . . Fastest Speed 50 | 50 120 95 95 Average Speed 101 | 114 120 98 95 Slowest Speed 210 | 120 120 120 210 Overloaded Moves . | . . . . Propulsion Burnouts . | . . . . Robots Hopped . | . . . . Cave-ins Triggered 1 | . . 1 . Exploration Rate (%) 50 | 6 29 88 79 Regions Visited 3 Branch Regions 2 Pre-discovered Areas . | . . . . Known Exits Taken . | . . . . Unknown Exits Taken 3 | 1 1 1 . Scrap Searched 1 | . . 1 . Spaces Dug . | . . . . Terrain Destroyed 29 | . . 26 3 Melee . | . . . . Projectile . | . . . . AOE 29 | . . 26 3 Terrain Rammed . | . . . . Walls Destroyed . | . . . . Machines Disabled . | . . . . Actions | -11 -10 -10 -10 --------- Run | Yrd Mat Min Exi Total 1245 | 134 177 569 365 Wait 33 | . 11 22 . Move 1119 | 102 143 530 344 Hop . | . . . . Pick Up 17 | 10 3 1 3 Fast Attach 9 | 7 . 1 1 Attach 3 | . . 1 2 Detach 1 | . . 1 . Swap 14 | . 4 7 3 Drop 10 | 2 4 1 3 Fire 38 | 13 12 5 8 Melee . | . . . . Ram . | . . . . Kick . | . . . . Crush . | . . . . Escape Stasis . | . . . . Rewire 1 | . . . 1 Trap . | . . . . Miscellaneous . | . . . . Route ------- -11/Scrapyard -10/Materials -10/Mines (discovered 4 exits: [*Mat x2] / *Exi / [*Sub]) -10/Exiles History --------- Turn | Location | Event 2 | -11/Scrapyard | Met Revision 17 6 | -11/Scrapyard | Discovered new exit (range 15) 174 | -11/Scrapyard | Entered Materials 308 | -10/Materials | Build established: Mutant 311 | -10/Materials | Discovered new exit (range 6) 401 | -10/Materials | Entered Mines 403 | -10/Mines | Met a Derelict bent on vengeance 492 | -10/Mines | Crushed by falling debris 508 | -10/Mines | Learned Materials emergency access door positions 581 | -10/Mines | Discovered new exit (range 7) 611 | -10/Mines | Found a damaged Exp. Sensor Array with a note attached 613 | -10/Mines | Found Prototype Device 613 | -10/Mines | Identified Exp. Sensor Array 628 | -10/Mines | Discovered new exit (range 4) 798 | -10/Mines | Received a Rocket Launcher from a helpful Derelict 886 | -10/Mines | Deemed a non-threat by the Exiles lab entrance 887 | -10/Mines | Discovered new exit (range 5) 948 | -10/Mines | Discovered new exit (range 5) 959 | -10/Mines | Build established: Scavenger-Mutant 973 | -10/Mines | Entered Exiles 997 | -10/Exiles | Met 8R-AWN 1012 | -10/Exiles | Met EX-HEX 1047 | -10/Exiles | Met EX-BIN 1060 | -10/Exiles | Aligned with FarCom system 1061 | -10/Exiles | Given EX-Vault access code 1095 | -10/Exiles | Opened EX-Vault 1102 | -10/Exiles | Found Gui. Plasma Cannon 1110 | -10/Exiles | Found Firepult 1140 | -10/Exiles | Warned to stay clear of 0b10 Research branches 1169 | -10/Exiles | Met EX-DEC 1212 | -10/Exiles | Visited The Gauntlet 1298 | -10/Exiles | Attacked by the Exiles 1329 | -10/Exiles | System corruption reached 10% 1331 | -10/Exiles | Core integrity fell below 50% 1335 | -10/Exiles | Core integrity fell below 20% 1336 | -10/Exiles | Destroyed by as-80576 with Assembled Heavy Rifle Last Messages --------------- 01298_ Machine disabled. 01298_ J5-HVA destroyed. 01298_ Machine disabled. 01308_ 5L-KAT destroyed. 01311_ W1-DM0 destroyed. 01314_ Acquired Mak. Leg. 01317_ as-47725 destroyed. 01319_ Gui. Plasma Cannon severed. 01321_ Acquired Gui. Plasma Cannon. 01325_ as-30711 destroyed. 01326_ Acquired 11 matter. 01326_ Wheel destroyed. 01328_ Testing Chamber Shield damaged. 01328_ Testing Apparatus damaged. 01329_ Lgt. Nuclear Core destroyed. 01329_ Rocket Launcher destroyed. 01330_ Machine disabled. 01332_ Mak. Leg destroyed. 01333_ EX-BIN: "I just want to science!" 01334_ Knocked back. Map ----- +----------------------------------------------------+ | ???????????????????#"""" ?????? | | ???????????????????## ?????? | | ????????????????????#" "???????? | | ????????????????????#"""" ""???????? | | ????????????????????#"" ""#????????? | | ????????????????????#" """"#?????????? | | ????????????????????#""" """??????????? | | ????????????????????## ""#??????????? | | ?????????????????????#"" """##??????????? | | ?????????????????????##""" ##???????????? | | ??????????????????????##"""" ##????????????? | | ???????????????????????### #?????????????? | | ?????????????????????????##### ##?????????????? | | ?????????????????????????????## #??????????????? | | ??????????????????????????????# #??????????????? | | ??????????????????????????????# #??????????????? | | ??????????????????????????????# #??????????????? | | ####?????????????????###??????# #??????????????? | | """""#?????"""""???#"""""?????# #??????????????? | | ""????"""""""???#"""""""???# #??????????????? | | "#??"""""" "#??#" """"#??# #??????????????? | | ""#""#""" """???#"" """???# #??????????????? | | ""#""#"" ""????"" ""???# #??????????????? | | """###""###"""########"""######z ########?####??? | | """"""" """""""" """a""c """"""#"""""#?? | | """""" """"""" @a =% c "#"" ""#?? | | =% az%a c " ""#?? | | a " " "#?? | | " """#?? | | "" "" #"" ""#?? | | """""" " """"" " " "" ""#"""""#?? | | """########"""###""###"""########" ###?####??? | | ""????"" ""#""#"" ""????"" ##?????????? | | " """????""" ""#""#""" ""???#"" " "#??????????? | | """ "#??#" """"""""#" " "#??#"""""""#??????????? | | """""????"""""""????"""""""????"" """"#??????????? | | """""????""""""?????"""""""#???""""""????????????? | | ??????????????????????##?#??????##???????????????? | | ?????????????????????????????????????????????????? | | ?????????????????????????????????????????????????? | | ?????????????????????????????????????????????????? | | ?????????????????????????????????????????????????? | | | | | | | | | | | | | | | | | +----------------------------------------------------+ Best States ------------- Heat Dissipation 25 Energy Generation 14 Energy Capacity 250 Matter Stores 300 Matter Capacity 300 Sight Range 16 Terrain Scan Range 16 Terrain Scan Density 10 Evasion (%) 55 Item Schematics ----------------- None Robot Schematics ------------------ None Fabricated ------------ Nothing Alien Tech Used ----------------- None Achievements -------------- None Challenges ------------ None Game ------ Seed RelayBombCyclogen Manual? 0 Play Time 00:11:41 Cumulative 204.8 hours Start 2024.11.02 @ 14:03:07 End 2024.11.02 @ 14:14:01 Sessions 1 Manual Loads 0 Difficulty Rogue Special Mode None Game No. 399 Rogue 399 Adventurer 0 Explorer 0 Win Type - Total 0 Types 0/0/0/0/0/0/0/0/0 Lore% 42 Gallery% 65 Achievement% 48 Wizard Run 0 Options --------- Layout 0 ASCII 0 Keyboard 1 Movement Numpad Keybinds 0 Fullscreen 1 Font 18/X11 Map View 76x50 Zoom Use 0% Tactical HUD 1 Map Filters NONE Filters NONE Steam 1 RUN: 8723f243-8b9b-4685-9cc8-78b5df06c93c